[Event "1000 GM Labor Day Super Swiss 2024"]
[Site "San Jose"]
[Date "2024.08.31"]
[Round "2.1"]
[White "Yoo, Christopher Woojin"]
[Black "Batchuluun, Tsegmed"]
[Result "1-0"]
[Annotator "TA"]
[ECO "C54"]
[WhiteElo "2616"]
[BlackElo "2458"]
[PlyCount "43"]
[EventDate "2024.08.30"]
[EventCountry "USA"]
[SourceTitle "playchess.com"]
[Source "ChessBase"]
[SourceQuality "1"]
[TimeControl "5400+30"]

{[%evp 9,43,0,10,-81,-67,-46,-29,-69,-72,-74,-55,-60,-65,-37,0,0,0,0,237,234,345,85,89,72,66,46,41,54,74,81,168,156,143,167,29983,29982]} 1. e4 {[%emt 0:00:03]} e5 {[%emt 0:00:05]} 2. Nf3 {[%emt 0:00:05]} Nc6 {[%emt 0:00:06]} 3. Bc4 {[%emt 0:00:03]} Bc5 {[%emt 0:00:11]} 4. c3 {[%emt 0:00:09]} Nf6 {[%emt 0:00:16]} 5. d4 {[%emt 0:00:03]} exd4 {[%emt 0:00:12]} 6. b4 {[%emt 0:00:04] [#]} (6. cxd4 $11 {remains equal.} Bb4+ 7. Bd2) 6... Bb6 $1 $17 {[%emt 0:00:26]} 7. e5 {[%emt 0:00:06]} Ne4 {[%emt 0:03:48]} 8. Bd5 {[%emt 0:00:04] Black has an edge.} Nxc3 {[%emt 0:00:04]} 9. Nxc3 {[%emt 0:00:04]} dxc3 {[%emt 0:00:05]} 10. O-O {[%emt 0:00:05]} O-O {[%emt 0:21:24]} (10... Nxb4 $2 11. Bg5 $18) (10... Ne7 {simplifies} 11. Bb3 d5 12. exd6 Qxd6 13. Qxd6 cxd6 14. Bf4 Be6) 11. Bg5 {[%emt 0:00:11] Prevents Qe7} Ne7 {[%emt 0:07:26]} 12. Bb3 {[%emt 0:00:38]} h6 {[%emt 0:00:21]} 13. Qd3 $1 {[%emt 0:01:32][%cal Ob3c2]} Qe8 $2 {[%emt 0:10:11] [#]} (13... hxg5 $2 14. Nxg5 $18) (13... d5 $11 {and Black has nothing to worry.} 14. Bc2 g6 (14... hxg5 15. Qh7#) (14... Bf5 15. Qxf5 Nxf5 16. Bxd8 $16)) 14. Rae1 $1 $18 {[%emt 0:07:47][%cal Og5f6]} Kh8 {[%emt 0:04:34]} ({Stronger than} 14... hxg5 15. Nxg5 Bxf2+ 16. Rxf2) (14... c2 {was worth a try.} 15. Bxc2 Ng6) (14... a5 15. b5) 15. Bc1 $2 {[%emt 0:20:07]} (15. h4 $18 {is the precise move to win.}) 15... d5 $16 {[%emt 0:08:28] And now ...a5 would win.} 16. exd6 {[%emt 0:00:10]} cxd6 {[%emt 0:00:04][%cal Oc8e6] [#]} 17. Bxh6 $1 $40 {[%emt 0:03:21][%mdl 128] White mounts an attack. White has more active pieces.} gxh6 {[%emt 0:09:04]} 18. Qxd6 {[%emt 0:05:09]} Be6 {[%emt 0:01:59]} 19. Bxe6 {[%emt 0:00:21]} fxe6 {[%emt 0:00:04]} (19... Ng6 $16 20. Bd7 Qd8) 20. Rxe6 $18 {[%emt 0:00:09]} Rf7 {[%emt 0:13:48]} 21. Rxh6+ {[%emt 0:00:27]} Rh7 $2 {[%emt 0:04:06]} (21... Kg7 $18 22. Ng5 Qc6 (22... Rd8 $2 23. Rh7+ Kg8 24. Qh6 $18) 23. Nxf7 (23. Rh7+ Kg8 $11) 23... Qxd6 24. Rxd6 Kxf7) 22. Ng5 {[%emt 0:00:25] Weighted Error Value: White=0.25 (precise) /Black=0.71.  Loses game:     	---       	Black=1      Missed win:     	White=1     	---        Mistake:       	---       	Black=3      Inaccurate:     	White=1     	Black=1      OK:         	White=4     	Black=5      Best:        	White=4     	---        Strong:       	White=1     	Black=1} 1-0

[Event "1000 GM Labor Day Super Swiss 2024"]
[Site "San Jose"]
[Date "2024.08.31"]
[Round "2.2"]
[White "Macovei, Andrei"]
[Black "Quesada Perez, Yasser"]
[Result "0-1"]
[Annotator "TA"]
[ECO "C54"]
[WhiteElo "2466"]
[BlackElo "2581"]
[PlyCount "136"]
[EventDate "2024.08.30"]
[EventCountry "USA"]
[SourceTitle "playchess.com"]
[Source "ChessBase"]
[SourceQuality "1"]
[TimeControl "5400+30"]

{[%evp 55,136,0,8,8,23,0,0,0,0,0,0,-27,0,0,0,0,0,-32,-31,-25,-29,-23,0,-41,-45,-31,-33,-61,-61,-58,-58,-111,-111,-111,-98,-98,-98,-142,-142,-203,-211,-208,-175,-241,-235,-215,-232,-218,-201,-186,-179,-256,-244,-351,-350,-350,-344,-442,-407,-382,-322,-334,-352,-352,-306,-336,-307,-350,-366,-366,-371,-344,-341,-460,-452,-722,-676,-1093,-1060,-1320,-1185,-6070,-4647]} 1. e4 {[%emt 0:00:09]} e5 {[%emt 0:00:54]} 2. Nf3 {[%emt 0:00:21]} Nc6 {[%emt 0:00:10]} 3. Bc4 {[%emt 0:00:09]} Bc5 {[%emt 0:00:13]} 4. c3 {[%emt 0:00:32]} Nf6 {[%emt 0:00:06]} 5. d3 {[%emt 0:00:08]} d6 {[%emt 0:00:28]} 6. O-O {[%emt 0:00:12]} h6 {[%emt 0:05:54]} 7. Re1 {[%emt 0:00:42]} O-O {[%emt 0:00:19]} 8. h3 {[%emt 0:00:20]} Bb6 {[%emt 0:02:00] C54: Giuoco Piano: 4 c3 Nf6, main lines with 5 d4 and 5 d3.} 9. Nbd2 {[%emt 0:04:36]} Ne7 {[%emt 0:01:09]} 10. Bb3 {[%emt 0:11:21] 10.a4 gains popularity.} Ng6 {[%emt 0:01:00]} 11. d4 {[%emt 0:01:52]} Be6 $5 {[%emt 0:12:01][%mdl 4] Leaves trodden paths.} 12. Bc2 {[%emt 0:05:05]} c5 {[%emt 0:02:09]} 13. d5 {[%emt 0:05:52]} Bd7 {[%emt 0:00:13]} 14. Nc4 {[%emt 0:01:01]} Bc7 {[%emt 0:00:23]} 15. Ne3 $146 {[%emt 0:15:33]} ({Predecessor:} 15. b4 b5 16. Ne3 c4 17. g4 Nf4 18. Kh2 g5 19. Nf5 Bxf5 20. gxf5 N6h5 21. Rg1 {0-1 Karatiken,B (1380)-Can,I (1864) TUR-ch (Women) 2022 (9)}) 15... b5 {[%emt 0:04:23]} 16. Nh2 {[%emt 0:07:39]} c4 {[%emt 0:06:30]} 17. Nhg4 {[%emt 0:04:06]} Nf4 {[%emt 0:16:46]} 18. a4 {[%emt 0:03:42]} h5 {[%emt 0:00:15]} 19. Nxf6+ {[%emt 0:02:42]} Qxf6 {[%emt 0:00:05]} 20. axb5 {[%emt 0:08:21]} Bb6 {[%emt 0:02:29]} 21. Nf5 {[%emt 0:01:07]} g6 {[%emt 0:05:57]} 22. Bxf4 {[%emt 0:00:25]} exf4 {[%emt 0:02:02]} 23. Nd4 {[%emt 0:00:15]} Kg7 {[%emt 0:08:07]} 24. Qf3 {[%emt 0:14:09]} Rfe8 {[%emt 0:02:30]} 25. Rad1 {[%emt 0:01:07]} Re5 {[%emt 0:01:30]} 26. Qe2 {[%emt 0:02:07]} Rg5 {[%emt 0:04:16]} 27. Kh1 {[%emt 0:03:44]} Bg4 {[%emt 0:00:38]} 28. Nf3 {[%emt 0:00:20]} (28. hxg4 $2 {loses.} hxg4 29. Kg1 $19) 28... Bxf3 {[%emt 0:00:54]} 29. Qxf3 {[%emt 0:00:54]} Rb8 {[%emt 0:04:27]} 30. Rf1 {[%emt 0:02:06]} Bc5 {[%emt 0:01:10]} 31. Ba4 {[%emt 0:00:00]} Re5 {[%emt 0:03:27]} 32. Rde1 {[%emt 0:00:40]} Qh4 {[%emt 0:09:03]} 33. Kh2 {[%emt 0:00:36]} a6 {[%emt 0:01:34]} 34. bxa6 {[%emt 0:03:18]} Rxb2 {[%emt 0:00:04]} 35. Re2 {[%emt 0:00:41]} Rb6 {[%emt 0:00:24]} 36. a7 {[%emt 0:01:42]} Ra6 {[%emt 0:00:04]} 37. Bb5 {[%emt 0:00:12]} Rxa7 {[%emt 0:00:03]} 38. Bxc4 {[%emt 0:00:10]} Ra3 {[%emt 0:01:02]} 39. Ra2 {[%emt 0:00:19]} Rxa2 {[%emt 0:00:30]} 40. Bxa2 {[%emt 0:00:01]} Re7 {[%emt 0:00:30]} 41. Bb1 {[%emt 0:00:56]} Rb7 {[%emt 0:00:47]} 42. g3 {[%emt 0:01:37]} fxg3+ {[%emt 0:00:49]} 43. Qxg3 {[%emt 0:00:01] [#]} (43. fxg3 $15 Qe7 44. Bd3) 43... Qf6 $1 $17 {[%emt 0:00:35]} 44. Kg2 {[%emt 0:00:37]} Rb3 {[%emt 0:00:47]} 45. Qf3 {[%emt 0:00:05]} Qg5+ {[%emt 0:00:50]} 46. Kh1 {[%emt 0:00:39]} Qd2 {[%emt 0:00:49]} 47. Qd3 {[%emt 0:01:14]} (47. Rd1 $17 Qxf2 (47... Qxc3 48. Qxc3+ Rxc3 49. Kg2 $17) (47... Rxc3 48. Rxd2 Rxf3 49. Kg2 $17) 48. Qxf2 Bxf2 49. c4) 47... Qb2 $19 {[%emt 0:00:05]} 48. Qc2 {[%emt 0:00:13]} Qxc2 {[%emt 0:00:08]} ({But not} 48... Qxc3 49. Qxc3+ Rxc3 50. Kg2 $17) 49. Bxc2 {[%emt 0:00:02]} Rxc3 {[%emt 0:00:05]} 50. Bd1 {[%emt 0:00:26]} Rxh3+ {[%emt 0:00:05]} 51. Kg2 {[%emt 0:00:01]} Ra3 {[%emt 0:00:33]} 52. f4 {[%emt 0:00:14]} Kh6 {[%emt 0:01:00]} 53. Bf3 {[%emt 0:01:07]} (53. e5 {was worth a try.}) 53... f6 {[%emt 0:00:48]} 54. Rh1 {[%emt 0:00:29]} (54. e5 $142) 54... Ra2+ $19 {[%emt 0:00:18]} 55. Kg3 {[%emt 0:00:27]} Bf2+ {[%emt 0:00:09]} 56. Kg2 {[%emt 0:00:19]} Bh4+ {[%emt 0:00:58]} 57. Kh3 {[%emt 0:00:55]} g5 {[%emt 0:00:05]} 58. fxg5+ {[%emt 0:00:36]} fxg5 {[%emt 0:00:06]} 59. e5 {[%emt 0:00:41]} dxe5 {[%emt 0:01:22]} 60. Rc1 {[%emt 0:00:55]} Ra3 {[%emt 0:01:09]} 61. Rc6+ {[%emt 0:00:07]} Kg7 {[%emt 0:00:07]} 62. Kg2 {[%emt 0:00:17]} g4 {[%emt 0:00:05]} 63. Be4 {[%emt 0:00:06]} Ra2+ {[%emt 0:01:05]} 64. Kh1 {[%emt 0:01:06]} Bf6 {[%emt 0:00:19]} 65. d6 {[%emt 0:00:56]} (65. Bc2 $142 Ra5 66. d6) 65... Rd2 $19 {[%emt 0:00:05]} 66. Rc7+ {[%emt 0:00:29]} Kh6 {[%emt 0:00:04]} 67. d7 {[%emt 0:00:37]} h4 {[%emt 0:00:23]} 68. Bc6 {[%emt 0:00:25]} h3 {[%emt 0:00:19]} 0-1

[Event "1000 GM Labor Day Super Swiss 2024"]
[Site "San Jose"]
[Date "2024.08.31"]
[Round "2.3"]
[White "Corrales Jimenez, Fidel"]
[Black "Sathish, Pranav"]
[Result "1/2-1/2"]
[Annotator "TA"]
[ECO "C45"]
[WhiteElo "2564"]
[BlackElo "2337"]
[PlyCount "40"]
[EventDate "2024.08.30"]
[EventCountry "USA"]
[SourceTitle "playchess.com"]
[Source "ChessBase"]
[SourceQuality "1"]
[TimeControl "5400+30"]

{[%evp 9,40,31,30,20,26,21,49,0,0,0,0,-33,0,0,0,0,0,0,0,0,0,0,12,-39,-65,-56,-58,-49,0,0,0,0,0]} 1. e4 {[%emt 0:10:24]} e5 {[%emt 0:00:04]} 2. Nf3 {[%emt 0:00:05]} Nc6 {[%emt 0:00:03]} 3. d4 {[%emt 0:00:19]} exd4 {[%emt 0:00:26]} 4. Nxd4 {[%emt 0:00:06]} Qf6 {[%emt 0:00:08]} 5. Nb3 {[%emt 0:00:26]} Qg6 {[%emt 0:00:28]} 6. f3 {[%emt 0:00:05]} Nf6 {[%emt 0:00:04]} 7. Bf4 {[%emt 0:03:23]} Bb4+ {[%emt 0:01:05]} 8. c3 {[%emt 0:02:38]} (8. Kf2 $1 $14 {is superior.}) 8... Be7 $11 {[%emt 0:00:22]} 9. Bxc7 {[%emt 0:04:25]} O-O $1 {[%emt 0:00:36][%cal Od7d6,Bh8f8,Bf8d8,Bd8d5][%mdl 32] White must now prevent ...d6!} 10. Bg3 {[%emt 0:01:22] [#]} d5 $1 {[%emt 0:05:52]} 11. exd5 {[%emt 0:00:12]} Rd8 $1 {[%emt 0:00:28]} 12. Bd3 {[%emt 0:33:09]} Bf5 {[%emt 0:02:59]} 13. Bxf5 {[%emt 0:00:10]} Qxf5 {[%emt 0:00:03]} 14. N1d2 {[%emt 0:00:07]} Rxd5 {[%emt 0:06:22]} 15. O-O {[%emt 0:07:00]} Rad8 {[%emt 0:08:33]} 16. Qe2 {[%emt 0:01:10]} (16. Qe1 $11) 16... Qc2 $15 {[%emt 0:00:44][%csl LRb2,LRd2][%cal Rd5d2]} 17. Rfc1 {[%emt 0:15:40]} Qxb2 {[%emt 0:00:50][%cal Rd5d2]} 18. Rab1 {[%emt 0:00:13]} Qxa2 {[%emt 0:01:32]} (18... Qa3 $1 $15 {is more appropriate.}) 19. Ra1 $11 {[%emt 0:01:25]} Qb2 {[%emt 0:00:40][%cal Rd5d2]} 20. Rab1 {[%emt 0:00:54]} Qa2 {[%emt 0:00:05] Weighted Error Value: White=0.10 (very precise) /Black=0.11 (very precise) .  Mistake:       	White=2     	Black=1      Inaccurate:     	White=1     	Black=2      OK:         	White=8     	Black=5      Best:        	White=3     	Black=1      Strong:       	---       	Black=2} 1/2-1/2

[Event "1000 GM Labor Day Super Swiss 2024"]
[Site "San Jose"]
[Date "2024.08.31"]
[Round "2.4"]
[White "Hevia Alejano, Carlos Antonio"]
[Black "Harsha Bharathakoti"]
[Result "1/2-1/2"]
[Annotator "TA"]
[ECO "D02"]
[WhiteElo "2414"]
[BlackElo "2550"]
[PlyCount "110"]
[EventDate "2024.08.30"]
[EventCountry "USA"]
[SourceTitle "playchess.com"]
[Source "ChessBase"]
[SourceQuality "1"]
[TimeControl "5400+30"]

{[%evp 15,110,6,12,14,29,12,8,0,23,16,13,0,0,0,0,0,9,0,21,14,8,13,50,56,48,47,47,47,47,52,45,47,50,46,45,45,47,45,45,52,52,41,61,64,63,72,62,68,65,56,60,54,50,50,63,70,59,68,86,42,48,48,48,48,48,45,38,31,49,44,52,51,70,55,79,73,89,96,117,70,152,102,107,83,77,71,76,76,76,20,33,8,28,26,26,26,26]} 1. d4 {[%emt 0:03:38]} Nf6 {[%emt 0:02:07]} 2. Nf3 {[%emt 0:00:04]} d5 {[%emt 0:00:41]} 3. Bf4 {[%emt 0:00:07]} e6 {[%emt 0:08:32]} 4. e3 {[%emt 0:00:39]} Bd6 {[%emt 0:01:59]} 5. Nbd2 {[%emt 0:06:46]} O-O {[%emt 0:02:11]} 6. Bd3 {[%emt 0:03:22]} c5 {[%emt 0:01:32]} 7. dxc5 {[%emt 0:06:00]} Bxc5 {[%emt 0:06:00]} 8. O-O {[%emt 0:01:11]} Nc6 {[%emt 0:00:38]} 9. c4 {[%emt 0:06:08]} b6 {[%emt 0:29:46]} 10. a3 {[%emt 0:32:16]} Bb7 {[%emt 0:02:31]} 11. Qe2 {[%emt 0:04:12] The position is equal.} h6 {[%emt 0:13:07]} 12. Rfd1 {[%emt 0:07:51]} Nh5 {[%emt 0:13:17]} 13. Nb3 {[%emt 0:03:58]} Nxf4 {[%emt 0:00:18]} 14. exf4 {[%emt 0:00:01]} Qf6 {[%emt 0:03:42]} 15. cxd5 {[%emt 0:05:52]} exd5 {[%emt 0:00:04]} 16. Rac1 {[%emt 0:00:08]} Bd6 {[%emt 0:04:11]} 17. g3 {[%emt 0:00:07]} Rfe8 {[%emt 0:00:23]} 18. Qd2 {[%emt 0:02:07]} d4 {[%emt 0:05:28][%cal Og7g5]} 19. Bb5 {[%emt 0:01:31][%csl LRc6,LRd4]} Rac8 {[%emt 0:00:21]} 20. Nfxd4 {[%emt 0:04:51]} Nxd4 {[%emt 0:01:37]} 21. Qxd4 {[%emt 0:00:02]} Rxc1 {[%emt 0:01:49]} 22. Rxc1 {[%emt 0:00:03]} Qxd4 {[%emt 0:00:32]} 23. Nxd4 {[%emt 0:00:01]} Rd8 {[%emt 0:00:16][%cal Od6f4]} 24. Bc6 {[%emt 0:01:37]} Bc5 {[%emt 0:00:44]} 25. Bxb7 {[%emt 0:00:11]} Bxd4 $14 {[%emt 0:00:10][%mdl 4096] Endgame. KRB-KRB} 26. Rc2 {[%emt 0:00:10]} a5 {[%emt 0:00:37]} 27. b4 {[%emt 0:00:26]} axb4 {[%emt 0:00:41]} 28. axb4 {[%emt 0:00:01]} Rd7 {[%emt 0:00:44]} 29. Rc8+ {[%emt 0:00:46]} Kh7 {[%emt 0:00:03]} 30. Be4+ {[%emt 0:00:28]} g6 {[%emt 0:00:03]} 31. f5 {[%emt 0:00:39]} Re7 {[%emt 0:00:05]} 32. fxg6+ {[%emt 0:00:03]} fxg6 {[%emt 0:00:02]} 33. Bd3 {[%emt 0:00:13]} Rf7 {[%emt 0:00:38]} 34. Rc2 {[%emt 0:00:06]} Rf3 {[%emt 0:02:08]} 35. Be4 {[%emt 0:00:08]} Rc3 {[%emt 0:00:03]} 36. Ra2 {[%emt 0:00:16]} Kg7 {[%emt 0:00:15]} 37. Bd5 {[%emt 0:05:00]} Kf6 {[%emt 0:01:04]} 38. Kg2 {[%emt 0:08:31]} g5 {[%emt 0:00:22]} 39. Rd2 {[%emt 0:00:00]} Be5 {[%emt 0:00:43]} 40. Bg8 {[%emt 0:00:00]} Rc8 {[%emt 0:00:14]} 41. Ba2 {[%emt 0:00:00]} Ra8 {[%emt 0:00:42]} 42. Bb3 {[%emt 0:00:00]} Ra3 {[%emt 0:00:37]} 43. Rd3 {[%emt 0:00:00]} g4 {[%emt 0:00:31]} 44. f3 {[%emt 0:01:15]} gxf3+ {[%emt 0:00:06]} 45. Kxf3 {[%emt 0:02:15]} ({Don't play} 45. Rxf3+ Kg7 $11) 45... Ke7 {[%emt 0:00:54]} 46. Kg4 {[%emt 0:00:00]} Bb2 {[%emt 0:00:30]} 47. Re3+ {[%emt 0:00:00]} (47. Kh5 $16) 47... Kd8 {[%emt 0:00:16]} (47... Kd7 $14) 48. Kf5 {[%emt 0:00:00]} (48. Kh5 $142) 48... Ra7 {[%emt 0:00:44]} 49. Re6 {[%emt 0:00:00]} Rf7+ {[%emt 0:00:15]} 50. Kg6 {[%emt 0:00:00]} Rf2 {[%emt 0:00:02]} 51. Rxb6 {[%emt 0:01:03]} ({Much worse is} 51. Kxh6 Rxh2+ 52. Kg5 Bc1+ 53. Kf5 Rh5+ 54. Ke4 Rb5 $11) 51... Rxh2 {[%emt 0:00:03] [#]} 52. Be6 {[%emt 0:00:55] Dodges Rh3} (52. g4 $1 $16) 52... Kc7 {[%emt 0:01:24] Against Rc6+} 53. Rb5 {[%emt 0:00:16]} Re2 {[%emt 0:00:46]} 54. Bf5 {[%emt 0:00:14]} Re5 {[%emt 0:00:08] Prevents g4.} 55. Rxe5 {[%emt 0:00:26]} Bxe5 {[%emt 0:00:04] Weighted Error Value: White=0.09 (flawless) /Black=0.08 (flawless) .  Mistake:       	White=3     	Black=1      Inaccurate:     	White=1     	Black=1      OK:         	White=19    	Black=20     Best:        	---       	Black=4} 1/2-1/2

[Event "1000 GM Labor Day Super Swiss 2024"]
[Site "San Jose"]
[Date "2024.08.31"]
[Round "2.5"]
[White "Sivakumar, Shaaketh"]
[Black "Koustav Chatterjee"]
[Result "1/2-1/2"]
[Annotator "TA"]
[ECO "C54"]
[WhiteElo "2307"]
[BlackElo "2524"]
[PlyCount "44"]
[EventDate "2024.08.30"]
[EventCountry "USA"]
[SourceTitle "playchess.com"]
[Source "ChessBase"]
[SourceQuality "1"]
[TimeControl "5400+30"]

{[%evp 10,44,22,20,20,6,17,9,8,8,4,0,17,0,24,39,41,42,39,29,58,47,35,33,73,9,12,-8,0,-21,-20,-20,-22,-18,-4,-11,-10]} 1. e4 e5 2. Nf3 Nc6 3. Bc4 Bc5 4. d3 Nf6 5. c3 d6 6. O-O a5 7. h3 h6 8. Nbd2 {[%cal Bb1d2,Bd2f1,Bf1g3][%mdl 32]} O-O 9. Re1 Be6 10. b3 Ba7 11. Bb2 Bxc4 12. bxc4 a4 13. Nf1 Nd7 {[%cal Bf6d7,Bd7c5,Bc5e6,Be6g5][%mdl 32]} 14. Ng3 Ne7 15. Nh4 Kh7 16. Bc1 {[%cal Oa1b1]} Nc5 17. Be3 ({Better is} 17. d4 $16 Ne6 18. Nf3 (18. Qxa4 Bxd4 19. Qc2 Bc5 $17)) 17... Ne6 $11 {The position is equal.} 18. Rb1 Bxe3 19. fxe3 b6 20. Rf1 Ng8 21. Nf3 Ng5 22. Qe2 {[%emt 0:11:00]} g6 {[%emt 0:11:00] Weighted Error Value: White=0.12 (very precise) /Black=0.09 (flawless) .  Mistake:       	White=1     	---        Inaccurate:     	---       	Black=2      OK:         	White=5     	Black=5} 1/2-1/2

[Event "1000 GM Labor Day Super Swiss 2024"]
[Site "San Jose"]
[Date "2024.08.31"]
[Round "2.6"]
[White "Cordova, Emilio"]
[Black "Yim, Sung Ho"]
[Result "1-0"]
[Annotator "TA"]
[ECO "D02"]
[WhiteElo "2519"]
[BlackElo "2291"]
[PlyCount "65"]
[EventDate "2024.08.30"]
[EventCountry "USA"]
[SourceTitle "playchess.com"]
[Source "ChessBase"]
[SourceQuality "1"]
[TimeControl "5400+30"]

{[%evp 9,65,21,27,8,9,9,3,5,3,0,0,0,9,0,0,0,0,0,29,18,33,35,53,58,35,0,9,-18,69,73,72,76,98,96,98,87,84,89,95,93,95,88,91,87,133,86,310,310,316,320,308,262,476,464,489,484,471,470]} 1. Nf3 {[%emt 0:00:37]} d5 {[%emt 0:06:02]} 2. g3 {[%emt 0:00:32]} g6 {[%emt 0:00:28]} 3. Bg2 {[%emt 0:00:44]} Bg7 {[%emt 0:00:05]} 4. d4 {[%emt 0:00:05]} c6 {[%emt 0:00:55]} 5. O-O {[%emt 0:01:15]} Nf6 {[%emt 0:00:07]} 6. a4 {[%emt 0:06:57]} O-O {[%emt 0:02:59]} 7. a5 {[%emt 0:02:35]} Bf5 {[%emt 0:04:32]} 8. Nbd2 {[%emt 0:03:40][%cal Bb1d2,Bd2f1,Bf1e3][%mdl 32] The position is equal.} Na6 {[%emt 0:05:50]} 9. c3 {[%emt 0:01:33]} Qc8 {[%emt 0:07:09]} 10. Qb3 {[%emt 0:03:43]} c5 {[%emt 0:01:41]} 11. Re1 {[%emt 0:01:10]} Rd8 {[%emt 0:06:54]} 12. Nf1 {[%emt 0:05:35]} Ne4 {[%emt 0:03:18]} 13. Bf4 {[%emt 0:03:32]} Nb8 {[%emt 0:04:43]} 14. Ne3 {[%emt 0:16:53]} Be6 {[%emt 0:02:51]} 15. Qa3 {[%emt 0:00:38]} f6 {[%emt 0:13:47] [#]} 16. c4 $1 $36 {[%emt 0:09:35][%mdl 2048] White has good play.} dxc4 {[%emt 0:01:44]} 17. d5 {[%emt 0:00:56]} Bf7 {[%emt 0:15:51]} 18. Rac1 {[%emt 0:04:03]} e5 {[%emt 0:05:59]} ({Black should try} 18... Na6 $11) 19. dxe6 $14 {[%emt 0:01:57]} (19. Rxc4 $2 exf4 20. gxf4 Re8 $19 (20... Bxd5 21. Nxd5 Rxd5 22. Rxe4 $16) (20... Bxd5 21. Nxd5 Rxd5 22. Rxe4 $16)) 19... Qxe6 {[%emt 0:00:06]} 20. Rxc4 {[%emt 0:01:12]} Nc6 {[%emt 0:00:38] [#]} 21. Rxe4 {[%emt 0:07:58]} Qxe4 {[%emt 0:00:06] [#]} 22. Ne5 $1 {[%emt 0:00:04]} Qb4 {[%emt 0:01:38]} 23. Qxb4 {[%emt 0:00:18]} Nxb4 {[%emt 0:02:06]} (23... cxb4 $2 {too greedy.} 24. Nxf7 Kxf7 25. a6 bxa6 26. Bxc6 $18) 24. Nxf7 {[%emt 0:00:28]} Kxf7 {[%emt 0:00:07]} 25. Bxb7 {[%emt 0:00:09]} Rab8 {[%emt 0:02:30] Black is weak on the light squares} 26. a6 {[%emt 0:01:03][%cal Oe3c4]} (26. Bxb8 {simplifies} Rxb8 27. Bf3 f5 28. Rc1) 26... Bf8 {[%emt 0:02:42]} 27. Nc4 {[%emt 0:03:10]} (27. Bxb8 $142 Rxb8 28. Nc4) 27... Be7 $2 {[%emt 0:02:47] Loses the game.} 28. Bxb8 $18 {[%emt 0:03:57]} Rxb8 {[%emt 0:00:02]} 29. Na3 {[%emt 0:00:23]} Bd8 {[%emt 0:02:11]} 30. Rd1 {[%emt 0:02:10]} Ke6 $2 {[%emt 0:00:51]} (30... Ke7 {might work better.} 31. Nb5 Bb6) 31. Nb5 {[%emt 0:00:29] White is clearly winning.} Bb6 {[%emt 0:00:13]} 32. Rd6+ {[%emt 0:00:20]} Ke7 {[%emt 0:00:12] [#]} 33. Rxb6 $1 {[%emt 0:00:14][%mdl 512] Weighted Error Value: White=0.07 (flawless) /Black=0.36.  Loses game:     	---       	Black=1      Mistake:       	White=1     	Black=3      Inaccurate:     	White=2     	Black=1      OK:         	White=10    	Black=12     Best:        	White=5     	Black=1      Brilliant:      	White=2     	---} 1-0